fUSD/lending_fUSD_20240327
["ID","MTS","AMOUNT","RATE_DAILY","PERIOD"]
[320739414,1711543839232,-160.0,0.00018202,2]
[320739415,1711543839241,-1293.66371984,0.00018204,2]
[320739416,1711543839251,-1459.85099439,0.00018204,2]
[320739417,1711543839260,-500.0,0.00018222,2]
[320739418,1711543839270,-272.0,0.00018307,2]
[320739419,1711543839279,-855.8,0.00018374,2]
[320739420,1711543839288,-3882.6,0.00018558,2]
[320739421,1711543839298,-156.94,0.00018643,2]
[320739422,1711543839308,-167.98,0.00018717,2]
[320739423,1711543839318,-167.21,0.0001876,2]
[320739424,1711543839327,-502.29976169,0.00018879,2]
[320739425,1711543839335,-171.86475117,0.000189,2]
[320739426,1711543839344,-1274.41347738,0.0001899,2]
[320739427,1711543839353,-297.29902466,0.00019,2]
[320739428,1711543839363,-232.55765196,0.00019,2]
[320739429,1711543839372,-429.72602658,0.00019,2]
[320739430,1711543839381,-429.72602658,0.00019,2]
[320739431,1711543839391,-429.72602658,0.00019,2]
[320739432,1711543839401,-429.72602658,0.00019,2]
[320739433,1711543839411,-429.72602658,0.00019,2]
[320739434,1711543839422,-429.72602658,0.00019,2]
[320739435,1711543839433,-429.72602658,0.00019,2]
[320739436,1711543839443,-429.72602658,0.00019,2]
[320739437,1711543839453,-429.72602658,0.00019,2]
[320739438,1711543839462,-429.72602658,0.00019,2]
[320739439,1711543839473,-429.72602658,0.00019,2]
[320739440,1711543839482,-429.72602658,0.00019,2]
[320739441,1711543839493,-429.72602658,0.00019,2]
[320739442,1711543839503,-429.72602658,0.00019,2]
[320739443,1711543839512,-429.72602658,0.00019,2]
[320739444,1711543839522,-429.72602658,0.00019,2]
[320739445,1711543839532,-429.72602658,0.00019,2]
[320739446,1711543839543,-429.72602658,0.00019,2]
[320739447,1711543839554,-429.72602658,0.00019,2]
[320739448,1711543839564,-429.72602658,0.00019,2]
[320739449,1711543839575,-429.72602658,0.00019,2]
[320739450,1711543839585,-429.72602658,0.00019,2]
[320739451,1711543839595,-429.72602658,0.00019,2]
[320739452,1711543839605,-429.72602658,0.00019,2]
[320739453,1711543839614,-429.72602658,0.00019,2]
[320739454,1711543839624,-429.72602658,0.00019,2]
[320739457,1711543839842,-429.72602658,0.00019,2]
[320739459,1711543839852,-429.72602658,0.00019,2]
[320739461,1711543839861,-429.72602658,0.00019,2]
[320739463,1711543839870,-429.72602658,0.00019,2]
[320739464,1711543839880,-429.72602658,0.00019,2]
[320739465,1711543839889,-429.72602658,0.00019,2]
[320739466,1711543839898,-429.72602658,0.00019,2]
[320739467,1711543839908,-429.72602658,0.00019,2]
[320739468,1711543839917,-429.72602658,0.00019,2]
[320739469,1711543839927,-429.72602658,0.00019,2]
[320739470,1711543839936,-429.72602658,0.00019,2]
[320739471,1711543839946,-429.72602658,0.00019,2]
[320739472,1711543839955,-429.72602658,0.00019,2]
[320739473,1711543839966,-429.72602658,0.00019,2]
[320739474,1711543839975,-429.72602658,0.00019,2]
[320739475,1711543839985,-429.72602658,0.00019,2]
[320739476,1711543839994,-429.72602658,0.00019,2]
[320739477,1711543840003,-429.72602658,0.00019,2]
[320739478,1711543840013,-429.72602658,0.00019,2]
[320739479,1711543840022,-429.72602658,0.00019,2]
[320739480,1711543840032,-429.72602658,0.00019,2]
[320739481,1711543840041,-429.72602658,0.00019,2]
[320739482,1711543840051,-429.72602658,0.00019,2]
[320739483,1711543840061,-429.72602658,0.00019,2]
[320739484,1711543840071,-935.63749683,0.00019,2]
[320739485,1711543840080,-935.63749683,0.00019,2]
[320739486,1711543840089,-935.63749683,0.00019,2]
[320739487,1711543840098,-935.63749683,0.00019,2]
[320739488,1711543840108,-935.63749683,0.00019,2]
[320739489,1711543840117,-935.63749683,0.00019,2]
[320739490,1711543840127,-935.63749683,0.00019,2]
[320739491,1711543840136,-935.63749683,0.00019,2]
[320739492,1711543840145,-935.63749683,0.00019,2]
[320739493,1711543840154,-935.63749683,0.00019,2]
[320739494,1711543840164,-935.63749683,0.00019,2]
[320739495,1711543840173,-935.63749683,0.00019,2]
[320739496,1711543840182,-935.63749683,0.00019,2]
[320739497,1711543840191,-935.63749683,0.00019,2]
[320739498,1711543840200,-935.63749683,0.00019,2]
[320739499,1711543840209,-935.63749683,0.00019,2]
[320739500,1711543840218,-935.63749683,0.00019,2]
[320739501,1711543840227,-935.63749683,0.00019,2]
[320739502,1711543840236,-935.63749683,0.00019,2]
[320739503,1711543840245,-935.63749683,0.00019,2]
[320739504,1711543840255,-935.63749683,0.00019,2]
[320739505,1711543840264,-935.63749683,0.00019,2]
[320739506,1711543840274,-935.63749683,0.00019,2]
[320739507,1711543840283,-935.63749683,0.00019,2]
[320739508,1711543840292,-935.63749683,0.00019,2]
[320739510,1711543840301,-935.63749683,0.00019,2]
[320739512,1711543840314,-935.63749683,0.00019,2]
[320739514,1711543840323,-935.63749683,0.00019,2]
[320739515,1711543840332,-935.63749683,0.00019,2]
[320739516,1711543840341,-935.63749683,0.00019,2]
[320739517,1711543840350,-935.63749683,0.00019,2]
[320739518,1711543840359,-935.63749683,0.00019,2]
[320739520,1711543840369,-935.63749683,0.00019,2]
[320739522,1711543840379,-935.63749683,0.00019,2]
[320739524,1711543840388,-935.63749683,0.00019,2]
[320739525,1711543840397,-935.63749683,0.00019,2]
[320739526,1711543840406,-935.63749683,0.00019,2]
[320739527,1711543840415,-935.63749683,0.00019,2]
[320739528,1711543840424,-935.63749683,0.00019,2]
[320739529,1711543840434,-935.63749683,0.00019,2]
[320739530,1711543840443,-935.63749683,0.00019,2]
[320739531,1711543840452,-935.63749683,0.00019,2]
[320739532,1711543840462,-935.63749683,0.00019,2]
[320739533,1711543840471,-935.63749683,0.00019,2]
[320739534,1711543840480,-935.63749683,0.00019,2]
[320739535,1711543840490,-935.63749683,0.00019,2]
[320739536,1711543840500,-935.63749683,0.00019,2]
[320739537,1711543840509,-935.63749683,0.00019,2]
[320739538,1711543840519,-935.63749683,0.00019,2]
[320739539,1711543840528,-935.63749683,0.00019,2]
[320739540,1711543840538,-935.63749683,0.00019,2]
[320739541,1711543840547,-935.63749683,0.00019,2]
[320739542,1711543840560,-935.63749683,0.00019,2]
[320739543,1711543840570,-935.63749683,0.00019,2]
[320739544,1711543840579,-935.63749683,0.00019,2]
[320739545,1711543840589,-935.63749683,0.00019,2]
[320739546,1711543840598,-935.63749683,0.00019,2]
[320739547,1711543840607,-935.63749683,0.00019,2]
[320739548,1711543840617,-935.63749683,0.00019,2]
[320739549,1711543840628,-935.63749683,0.00019,2]
[320739550,1711543840637,-935.63749683,0.00019,2]
[320739551,1711543840650,-935.63749683,0.00019,2]
[320739552,1711543840660,-935.63749683,0.00019,2]
[320739553,1711543840669,-935.63749683,0.00019,2]
[320739554,1711543840679,-935.63749683,0.00019,2]
[320739555,1711543840689,-935.63749683,0.00019,2]
[320739556,1711543840698,-935.63749683,0.00019,2]
[320739557,1711543840707,-935.63749683,0.00019,2]
[320739558,1711543840717,-935.63749683,0.00019,2]
[320739559,1711543840726,-935.63749683,0.00019,2]
[320739560,1711543840737,-935.63749683,0.00019,2]
[320739561,1711543840748,-935.63749683,0.00019,2]
[320739562,1711543840757,-935.63749683,0.00019,2]
[320739563,1711543840767,-935.63749683,0.00019,2]
[320739564,1711543840777,-935.63749683,0.00019,2]
[320739565,1711543840787,-935.63749683,0.00019,2]
[320739566,1711543840797,-935.63749683,0.00019,2]
[320739567,1711543840809,-935.63749683,0.00019,2]
[320739568,1711543840818,-935.63749683,0.00019,2]
[320739569,1711543840828,-935.63749683,0.00019,2]
[320739570,1711543840837,-935.63749683,0.00019,2]
[320739571,1711543840847,-935.63749683,0.00019,2]
[320739572,1711543840857,-935.63749683,0.00019,2]
[320739573,1711543840866,-935.63749683,0.00019,2]
[320739574,1711543840877,-935.63749683,0.00019,2]
[320739575,1711543840886,-935.63749683,0.00019,2]
[320739576,1711543840896,-935.63749683,0.00019,2]
[320739577,1711543840905,-935.63749683,0.00019,2]
[320739578,1711543840915,-935.63749683,0.00019,2]
[320739579,1711543840927,-1158.74076,0.0001907,2]
[320739580,1711543840936,-422.28792937,0.00019178,2]
[320739581,1711543840946,-250.33192226,0.00019178,2]
[320739582,1711543840955,-281.20442799,0.00019178,2]
[320739583,1711543840965,-500.0,0.00019178,2]
[320739584,1711543840974,-500.0,0.00019178,2]
[320739585,1711543840984,-264.98389865,0.00019178,2]
[320739586,1711543840993,-500.0,0.00019178,2]
[320739587,1711543841003,-500.0,0.00019178,2]
[320739588,1711543841012,-500.0,0.00019178,2]
[320739589,1711543841022,-8632.23,0.00019178,2]
[320739590,1711543841031,-156.55,0.0001918,2]
[320739591,1711543841041,-156.55,0.0001918,2]
[320739592,1711543841050,-156.55,0.0001918,2]
[320739593,1711543841063,-156.55,0.0001918,2]
[320739594,1711543841073,-156.55,0.0001918,2]
[320739595,1711543841083,-156.55,0.0001918,2]
[320739596,1711543841092,-156.55,0.0001918,2]
[320739597,1711543841102,-156.55,0.0001918,2]
[320739598,1711543841111,-3846.71319902,0.000192,2]
[320739599,1711543841120,-422.8,0.000192,2]
[320739600,1711543841130,-265.55,0.000192,2]
[320739601,1711543841139,-211.72,0.000192,2]
[320739602,1711543841148,-1158.74077,0.0001923,2]
[320739603,1711543841158,-180.0,0.00019288,2]
[320739604,1711543841168,-293.0,0.00019376,2]
[320739605,1711543841177,-1158.74077,0.0001939,2]
[320739606,1711543841187,-1158.74077,0.0001954,2]
[320739607,1711543841196,-15142.0,0.00019585,2]
[320739608,1711543841205,-1000.0,0.0001969,2]
[320739609,1711543841335,-1014.0,0.000197,2]
[320739610,1711543841345,-1158.74077,0.000197,2]
[320739611,1711543841354,-1158.74077,0.0001986,2]
[320739612,1711543841363,-152.0813049,0.000199,2]
[320739613,1711543841372,-186.66881901,0.000199,2]
[320739614,1711543841382,-156.94,0.00019962,2]
[320739615,1711543841391,-155.0,0.0002,2]
[320739616,1711543841400,-155.0,0.0002,2]
[320739617,1711543841409,-3708.77772132,0.0002,2]
[320739618,1711543841419,-6653.0,0.0002,2]
[320739619,1711543841428,-3950.0,0.0002,2]
[320739620,1711543841437,-1249.19045626,0.0002,2]
[320739621,1711543841446,-1757.21056864,0.0002,2]
[320739622,1711543841455,-854.93307856,0.0002,2]
[320739623,1711543841464,-2005.83232922,0.0002,2]
[320739624,1711543841473,-281.17758265,0.0002,2]
[320739625,1711543841482,-259.73532178,0.0002,2]
[320739626,1711543841491,-3045.64301195,0.0002,2]
[320739627,1711543841500,-155.0,0.0002,2]
[320739628,1711543841510,-167.21,0.000201,2]
[320739629,1711543841518,-169.41,0.00020208,2]
[320739630,1711543841527,-169.41,0.00020213,2]
[320739631,1711543841536,-169.41,0.00020219,2]
[320739632,1711543841545,-169.41,0.00020224,2]
[320739633,1711543841555,-160.0,0.00020224,2]
[320739634,1711543841564,-169.41,0.00020229,2]
[320739635,1711543841573,-169.41,0.00020234,2]
[320739636,1711543841582,-169.41,0.0002024,2]
[320739637,1711543841591,-169.41,0.00020245,2]
[320739638,1711543841600,-169.41,0.0002025,2]
[320739639,1711543841609,-169.41,0.00020256,2]
[320739640,1711543841618,-169.41,0.00020261,2]
[320739641,1711543841628,-169.41,0.00020266,2]
[320739642,1711543841637,-169.41,0.00020272,2]
[320739643,1711543841647,-169.41,0.00020277,2]
[320739644,1711543841658,-169.41,0.00020282,2]
[320739645,1711543841667,-169.41,0.00020288,2]
[320739646,1711543841677,-169.41,0.00020293,2]
[320739647,1711543841686,-169.41,0.00020298,2]
[320739648,1711543841695,-169.41,0.00020304,2]
[320739649,1711543841704,-169.41,0.00020309,2]
[320739650,1711543841714,-152.08130486,0.00020445,2]
[320739651,1711543841724,-272.0,0.00020596,2]
[320739652,1711543841733,-855.8,0.00020638,2]
[320739653,1711543841743,-712.87217546,0.00021,2]
[320739654,1711543841752,-11539.62397023,0.00021062,2]
[320739655,1711543841762,-4892.85,0.00021096,2]
[320739656,1711543841771,-156.94,0.0002128,2]
[320739657,1711543841781,-3882.6,0.00021298,2]
[320739658,1711543841790,-167.21,0.0002144,2]
[320739659,1711543841799,-1000.0,0.00021659,2]
[320739660,1711543841811,-265.55,0.000218,2]
[320739661,1711543841821,-9477.4053592,0.00021873,2]
[320739662,1711543841830,-7732.7715747,0.00021873,2]
[320739663,1711543841839,-250.0,0.00021918,2]
[320739664,1711543841849,-644.17906747,0.00022,2]
[320739665,1711543841858,-540.74578905,0.00022,2]
[320739666,1711543841868,-155.0,0.00022,2]
[320739667,1711543841878,-211.72,0.00022,2]
[320739668,1711543841887,-1153.16,0.00022033,2]
[320739669,1711543841896,-186.66881899,0.00022201,2]
[320739670,1711543841905,-160.0,0.00022247,2]
[320739671,1711543841914,-422.8,0.000223,2]
[320739672,1711543841924,-156.94,0.00022599,2]
[320739673,1711543841933,-167.21,0.0002278,2]
[320739674,1711543841942,-272.0,0.00022884,2]
[320739675,1711543841951,-855.8,0.00022901,2]
[320739676,1711543841961,-5000.0,0.000235,2]
[320739677,1711543841970,-220000.0,0.000235,2]
[320739678,1711543841979,-1921.27100375,0.0002354,2]
[320739679,1711543841988,-1000.0,0.00023628,2]
[320739680,1711543841997,-223.94252704,0.00024,2]
[320739681,1711543842006,-167.21,0.0002412,2]
[320739682,1711543842016,-160.0,0.00024269,2]
[320739683,1711543842025,-11539.62397023,0.00024425,2]
[320739684,1711543842034,-152.08130486,0.00024966,2]
[320739685,1711543842044,-2641.73879893,0.00025,2]
[320739686,1711543842053,-1362.85766619,0.00025,2]
[320739687,1711543842063,-155.0,0.00025,2]
[320739688,1711543842073,-331.87749171,0.00025,7]
[320739689,1711543842082,-855.8,0.00025165,2]
[320739690,1711543842091,-9477.4053592,0.00025947,2]
[320739691,1711543842100,-7732.7715747,0.00025947,2]
[320739692,1711543842110,-186.66881899,0.00026503,2]
[320739693,1711543842119,-10985.01,0.00026575,2]
[320739694,1711543842128,-1145.93,0.00026679,2]
[320739695,1711543842137,-211.72,0.000268,2]
[320739696,1711543842147,-250.0,0.00027,3]
[320739697,1711543842156,-3415.13,0.00027123,2]
[320739698,1711543842165,-265.55,0.000272,2]
[320739699,1711543842175,-15710.02,0.00027397,2]
[320739700,1711543842184,-10000.0,0.00027397,2]
[320739701,1711543842193,-79518.03,0.00027397,2]
[320739702,1711543842202,-500.0,0.000274,7]
[320739703,1711543842211,-500.0,0.000274,7]
[320739704,1711543842220,-855.8,0.00027429,2]
[320739705,1711543842230,-272.0,0.00027461,120]
[320739706,1711543842239,-11539.62397023,0.00027789,2]
[320739707,1711543842249,-1020.26297848,0.00028,10]
[320739708,1711543842258,-422.8,0.000284,2]
[320739709,1711543842268,-300.0,0.00029,3]
[320739710,1711543842277,-559.30829187,0.00029,2]
[320739711,1711543842287,-152.08130486,0.00029487,2]
[320739712,1711543842296,-855.8,0.00029693,2]
[320739713,1711543842307,-176.3,0.00029981,2]
[320739714,1711543842316,-2647.00710163,0.0002999,2]
[320739715,1711543842325,-9477.4053592,0.0003002,2]
[320739716,1711543842334,-7732.7715747,0.0003002,2]
[320739717,1711543842343,-186.66881899,0.00030804,15]
[320739718,1711543842353,-350.0,0.00031,3]
[320739719,1711543842363,-1736.72669976,0.0003111,2]
[320739720,1711543842372,-11539.62397023,0.00031152,2]
[320739721,1711543842382,-855.8,0.00031957,2]
[320739722,1711543842391,-336.0,0.00031978,5]
[320739723,1711543842400,-261.4879084,0.00032312,2]
[320739724,1711543842409,-4892.85,0.00032329,2]
[320739725,1711543842419,-265.55,0.000324,2]
[320739726,1711543842428,-211.72,0.000324,2]
[320739727,1711543842438,-692.13,0.00032548,15]
[320739728,1711543842448,-400.0,0.00033,3]
[320739729,1711543842458,-150.0,0.00033274,2]
[320739730,1711543842467,-150.0,0.00033274,2]
[320739731,1711543842476,-150.0,0.00033274,2]
[320739732,1711543842485,-150.0,0.00033274,2]
[320739733,1711543842494,-422.8,0.000333,2]
[320739734,1711543842504,-152.08130486,0.00034008,2]
[320739735,1711543842513,-9477.4053592,0.00034093,2]
[320739736,1711543842523,-7732.7715747,0.00034093,2]
[320739737,1711543842532,-855.8,0.00034221,2]
[320739738,1711543842542,-11539.62397023,0.00034515,6]
[320739739,1711543842551,-150.0,0.00034548,10]
[320739740,1711543842563,-450.0,0.00035,3]
[320739741,1711543842572,-186.66881899,0.00035105,30]
[320739742,1711543842582,-692.13,0.00035288,15]
[320739743,1711543842592,-596.23846265,0.00035766,4]
[320739744,1711543842601,-742.1963591,0.00036087,2]
[320739745,1711543842610,-6300.2943984,0.00036087,2]
[320739746,1711543842619,-855.8,0.00036485,2]
[320739747,1711543842630,-198.92759589,0.00036872,2]
[320739748,1711543842640,-500.0,0.00037,120]
[320739749,1711543842649,-500.0,0.00037,3]
[320739750,1711543842658,-265.55,0.00037,2]
[320739752,1711543842668,-11539.62397023,0.00037878,11]
[320739753,1711543842679,-1145.93,0.00037912,2]
[320739754,1711543842689,-500.0,0.00038,120]
[320739755,1711543842699,-692.13,0.00038027,15]
[320739756,1711543842710,-211.72,0.000381,7]
[320739757,1711543842720,-9477.4053592,0.00038167,2]
[320739758,1711543842730,-7732.7715747,0.00038167,2]
[320739760,1711543842740,-253.6076542,0.00038356,2]
[320739762,1711543842751,-152.08130486,0.00038528,2]
[320739763,1711543842761,-155.0,0.000387,4]
[320739764,1711543842772,-855.8,0.00038749,2]
[320739765,1711543842781,-400.28635015,0.0003888,2]
[320739766,1711543842791,-1000.0,0.00038904,120]
[320739767,1711543842801,-500.0,0.00039,120]
[320739769,1711543842812,-550.0,0.00039,3]
[320739771,1711543842821,-215.53404189,0.00039251,11]
[320739773,1711543842831,-186.66881899,0.00039407,46]
[320739775,1711543842841,-2505.073525,0.000397,34]
[320739777,1711543842850,-150.0,0.00039784,2]
[320739778,1711543842859,-150.0,0.00039795,2]
[320739779,1711543842869,-150.0,0.00039833,2]
[320739780,1711543842878,-150.0,0.00039897,2]
[320739781,1711543842887,-247.0,0.000399,3]
[320739782,1711543842897,-422.8,0.000399,7]
[320739783,1711543842906,-150.0,0.00039949,2]
[320739784,1711543842915,-150.0,0.00039987,2]
[320739785,1711543842925,-150.0,0.00039993,2]
[320739786,1711543842934,-150.0,0.00039996,2]
[320739787,1711543842944,-150.0,0.00039999,2]
[320739788,1711543842954,-9468.08172257,0.0004,7]
[320739789,1711543842964,-690.0,0.0004,3]
[320739790,1711543842974,-13230.43578955,0.0004,2]
[320739791,1711543842983,-500.0,0.0004,120]
[320739792,1711543842994,-3739.00676453,0.0004,4]
[320739793,1711543843003,-7937.94912886,0.0004,4]
[320739794,1711543843012,-4753.15701994,0.0004,4]
[320739795,1711543843021,-3357.71176501,0.0004,4]
[320739796,1711543843031,-2385.94542606,0.0004,120]
[320739797,1711543843041,-1877.47970494,0.0004,30]
[320739799,1711543843050,-150.0,0.00040004,2]
[320739801,1711543843059,-150.0,0.00040048,2]
[320739803,1711543843068,-150.0,0.00040055,2]
[320739805,1711543843078,-150.0,0.00040065,2]
[320739818,1711543843087,-150.0,0.00040098,2]
[320739820,1711543843215,-150.0,0.00040099,2]
[320739822,1711543843225,-150.0,0.00040106,2]
[320739824,1711543843234,-150.0,0.00040115,2]
[320739826,1711543843243,-150.0,0.00040139,2]
[320739828,1711543843252,-150.0,0.00040162,2]
[320739830,1711543843261,-150.0,0.00040176,2]
[320739832,1711543843270,-150.0,0.00040193,2]
[320739834,1711543843280,-1500.0,0.000402,34]
[320739836,1711543843289,-150.0,0.00040206,2]
[320739837,1711543843298,-150.0,0.0004021,2]
[320739839,1711543843308,-221.90580249,0.00040211,2]
[320739841,1711543843317,-2749.00483996,0.00040216,2]
[320739843,1711543843326,-13951.20719775,0.00040216,3]
[320739845,1711543843336,-4000.0,0.00040216,3]
[320739847,1711543843345,-10024.87046969,0.00040216,3]
[320739848,1711543843354,-18910.34718355,0.00040216,3]
[320739850,1711543843363,-3827.55524853,0.00040216,3]
[320739852,1711543843372,-1132.05558344,0.00040216,2]
[320739854,1711543843381,-150.0,0.00040235,2]
[320739855,1711543843390,-150.0,0.00040254,2]
[320739856,1711543843400,-235.62035454,0.00040257,2]
[320739857,1711543843409,-1563.64146383,0.00040257,2]
[320739858,1711543843419,-1260.11737378,0.00040258,90]
[320739859,1711543843429,-3766.34690789,0.00040258,4]
[320739860,1711543843439,-677.18201409,0.00040258,36]
[320739861,1711543843448,-43574.41850609,0.00040258,120]
[320739862,1711543843458,-1369.76176017,0.00040258,4]
[320739863,1711543843468,-3380.14484589,0.00040258,4]
[320739864,1711543843477,-150.0,0.00040334,2]
[320739865,1711543843486,-150.0,0.00040338,2]
[320739866,1711543843496,-150.0,0.00040344,2]
[320739867,1711543843506,-150.0,0.00040347,2]
[320739868,1711543843516,-150.0,0.00040349,2]
[320739870,1711543843525,-150.0,0.0004035,2]
[320739871,1711543843535,-150.0,0.00040353,2]
[320739874,1711543843544,-1000.0,0.00040354,2]
[320739876,1711543843556,-150.0,0.00040354,2]
[320739878,1711543843566,-924.3436,0.00040355,4]
[320739879,1711543843575,-150.0,0.00040362,2]
[320739880,1711543843584,-150.0,0.00040363,2]
[320739881,1711543843593,-150.0,0.00040373,2]
[320739882,1711543843602,-150.0,0.00040373,2]
[320739883,1711543843612,-150.0,0.00040398,2]
[320739884,1711543843621,-150.0,0.00040423,2]
[320739885,1711543843630,-150.0,0.00040432,2]
[320739886,1711543843640,-150.0,0.0004045,2]
[320739887,1711543843653,-150.0,0.00040451,2]
[320739888,1711543843662,-150.0,0.00040464,2]
[320739889,1711543843671,-150.0,0.00040468,2]
[320739890,1711543843681,-150.0,0.0004047,2]
[320739891,1711543843690,-150.0,0.00040471,2]
[320739892,1711543843700,-150.0,0.00040475,2]
[320739893,1711543843709,-150.0,0.00040477,2]
[320739894,1711543843720,-150.0,0.00040477,2]
[320739895,1711543843732,-150.0,0.00040488,2]
[320739896,1711543843741,-150.0,0.00040491,2]
[320739897,1711543843750,-150.0,0.00040494,2]
[320739898,1711543843760,-150.0,0.00040518,2]
[320739899,1711543843769,-150.0,0.00040531,2]
[320739900,1711543843779,-150.0,0.00040533,2]
[320739901,1711543843788,-150.0,0.00040538,2]
[320739902,1711543843797,-150.0,0.0004054,2]
[320739903,1711543843807,-150.0,0.00040564,2]
[320739904,1711543843817,-150.0,0.00040588,2]
[320739905,1711543843826,-150.0,0.00040595,2]
[320739906,1711543843835,-1000.0,0.000406,15]
[320739907,1711543843844,-150.0,0.0004061,2]
[320739908,1711543843854,-1264.48164586,0.00040613,2]
[320739909,1711543843863,-150.0,0.00040613,2]
[320739910,1711543843873,-150.0,0.00040617,2]
[320739911,1711543843882,-150.0,0.00040645,2]
[320739912,1711543843891,-150.0,0.00040652,2]
[320739913,1711543843900,-428.75879949,0.00040664,2]
[320739914,1711543843909,-154.14604573,0.00040678,2]
[320739915,1711543843918,-150.0,0.00040679,2]
[320739916,1711543843927,-150.0,0.00040685,2]
[320739917,1711543843937,-150.0,0.00040686,2]
[320739918,1711543843946,-150.0,0.00040699,2]
[320739919,1711543843956,-1500.0,0.000407,34]
[320739920,1711543843965,-600.0,0.000407,120]
[320739921,1711543843974,-150.0,0.00040703,2]
[320739922,1711543843983,-150.0,0.00040704,2]
[320739923,1711543843992,-150.0,0.00040715,2]
[320739924,1711543844001,-150.0,0.00040717,2]
[320739925,1711543844010,-1500.0,0.00040726,2]
[320739926,1711543844019,-150.0,0.00040748,2]
[320739927,1711543844029,-150.0,0.00040752,2]
[320739928,1711543844038,-150.0,0.00040754,2]
[320739929,1711543844047,-150.0,0.00040755,2]
[320739930,1711543844058,-1500.0,0.00040758,2]
[320739931,1711543844067,-150.0,0.00040763,2]
[320739932,1711543844076,-692.13,0.00040767,15]
[320739933,1711543844085,-150.0,0.00040793,2]
[320739934,1711543844094,-150.0,0.00040794,2]
[320739935,1711543844103,-300.0,0.00040796,2]
[320739936,1711543844113,-150.0,0.00040802,2]
[320739937,1711543844122,-150.0,0.00040806,2]
[320739938,1711543844131,-150.0,0.00040812,2]
[320739939,1711543844140,-150.0,0.00040818,2]
[320739940,1711543844150,-150.0,0.0004082,2]
[320739941,1711543844159,-150.0,0.00040824,2]
[320739942,1711543844167,-1563.64146383,0.00040844,2]
[320739943,1711543844176,-150.0,0.00040851,2]
[320739944,1711543844185,-150.0,0.00040861,2]
[320739945,1711543844194,-150.0,0.00040864,2]
[320739946,1711543844203,-150.0,0.00040877,2]
[320739947,1711543844212,-150.0,0.00040879,2]
[320739948,1711543844221,-150.0,0.00040879,2]
[320739949,1711543844230,-150.0,0.00040888,2]
[320739950,1711543844240,-150.0,0.0004089,2]
[320739951,1711543844249,-150.0,0.00040899,2]
[320739952,1711543844259,-1000.0,0.000409,15]
[320739953,1711543844268,-150.0,0.00040912,2]
[320739954,1711543844278,-150.0,0.00040929,2]
[320739955,1711543844286,-1500.0,0.0004093,2]
[320739956,1711543844296,-1500.0,0.00040942,2]
[320739957,1711543844307,-1845.46219575,0.00040948,2]
[320739958,1711543844317,-994.07682005,0.00040949,7]
[320739959,1711543844326,-150.0,0.00040949,2]
[320739960,1711543844336,-300.0,0.00040952,2]
[320739961,1711543844345,-150.0,0.00040956,2]
[320739962,1711543844354,-150.0,0.00040974,2]
[320739963,1711543844363,-150.0,0.00040979,2]
[320739964,1711543844373,-150.0,0.00040987,2]
[320739965,1711543844382,-150.0,0.00040987,2]
[320739966,1711543844391,-150.0,0.00040987,2]
[320739967,1711543844400,-300.0,0.00040992,2]
[320739968,1711543844409,-300.0,0.00040997,2]
[320739969,1711543844418,-500.0,0.00041,120]
[320739970,1711543844427,-600.0,0.00041,3]